bitfinex/quotes_ETHUSD_20241108
["timestamp","ask_amount","ask_price","bid_price","bid_amount"]
[1731076720756,0.01,2927.6,2926.4,0.35567522]
[1731076721057,0.01,2927.6,2926.2,0.69926824]
[1731076721058,0.01,2927.4,2926.2,0.69926824]
[1731076721258,0.09541119,2927.4,2926.2,0.69926824]
[1731076721692,0.01,2927.0,2925.8,5.30713121]
[1731076721873,0.8237,2926.9,2925.9,0.53071312]
[1731076722076,0.8237,2926.9,2926.2,4.48853121]
[1731076722601,0.8237,2926.9,2926.0,0.68978456]
[1731076722602,0.827,2927.6,2926.6,4.48853121]
[1731076722757,0.827,2928.2,2927.0,4.48853121]
[1731076723111,0.827,2928.2,2927.1,0.06830723]
[1731076723253,0.827,2928.2,2927.2,0.45568384]
[1731076723598,0.827,2928.2,2926.1,0.43462786]
[1731076723599,0.827,2927.6,2926.4,4.48853121]
[1731076723753,0.827,2927.6,2926.8,4.48853121]
[1731076723954,0.827,2927.6,2926.9,0.0683094]
[1731076724161,0.827,2927.6,2926.9,0.0683096]
[1731076724395,0.827,2927.6,2927.0,0.45568408]
[1731076724564,0.7634,2928.1,2927.0,0.45568408]
[1731076725091,0.7634,2928.1,2927.3,3.0]
[1731076725336,0.8161,2928.6,2927.6,4.48853121]
[1731076725521,0.8161,2928.6,2927.7,3.0]
[1731076725735,0.08536875,2929.7,2927.7,3.0]
[1731076725736,0.8088,2929.3,2928.0,4.48853121]
[1731076726047,0.01,2929.2,2928.5,3.0]
[1731076726198,0.01,2929.2,2928.1,3.0]
[1731076726600,0.10535783,2929.2,2928.1,3.0]
[1731076727002,0.10535783,2929.2,2928.2,0.0682883]
[1731076727652,0.01,2928.9,2927.7,3.0]
[1731076727863,0.09536412,2929.0,2927.8,0.0682913]
[1731076728015,0.08536412,2929.0,2928.1,4.48853121]
[1731076728342,0.7593,2929.1,2928.1,4.48853121]
[1731076728551,0.7593,2929.1,2927.8,3.8156]
[1731076728848,0.09535679,2929.0,2927.8,3.0]
[1731076729056,0.01,2928.9,2927.9,0.06829195]
[1731076729226,0.01,2928.9,2927.8,3.0]
[1731076729424,0.01,2928.2,2927.7,4.48853121]
[1731076729656,0.01,2928.2,2927.2,4.48853121]
[1731076729836,0.01,2928.5,2927.2,5.06257274]
[1731076730030,0.09538007,2928.5,2927.3,0.06830407]
[1731076730546,0.01,2928.4,2927.2,5.06257274]
[1731076730752,0.01,2928.4,2927.3,0.06830241]
[1731076730943,0.7729,2928.6,2927.6,4.48853121]
[1731076731341,0.09536515,2928.5,2927.6,4.48853121]
[1731076731548,0.01,2928.4,2927.6,4.48853121]
[1731076732555,0.01,2928.4,2927.2,0.57404153]
[1731076732851,0.01,2928.3,2927.2,3.05572653]
[1731076733229,0.7694,2927.9,2926.6,4.48853121]
[1731076733614,0.01,2927.6,2926.6,4.48853121]
[1731076733857,0.7594,2927.9,2926.7,0.06831518]
[1731076734055,0.7694,2927.9,2926.7,0.06831518]
[1731076734561,0.01,2927.4,2926.2,4.48853121]
[1731076734711,0.7548,2927.3,2926.3,0.03581737]
[1731076734913,0.01,2927.0,2926.3,0.03581737]
[1731076735217,0.01,2927.0,2926.3,0.09337708]
[1731076735419,0.8086,2926.9,2926.3,0.09337708]
[1731076735647,0.8086,2926.9,2926.3,0.03581737]
[1731076735850,0.8086,2926.9,2926.1,0.03581737]
[1731076736127,0.8086,2927.5,2926.6,4.48853121]
[1731076736351,0.8086,2927.5,2926.7,0.06831856]
[1731076736561,0.8086,2927.5,2926.7,3.06831856]
[1731076736740,0.8086,2927.5,2927.0,4.48853121]
[1731076736949,0.08539587,2929.0,2927.0,4.48853121]
[1731076736950,0.02,2928.0,2927.0,4.48853121]
[1731076737329,0.10538937,2928.0,2927.0,4.48853121]
[1731076737530,0.01,2928.0,2927.0,4.48853121]
[1731076737828,0.01,2927.9,2927.0,4.93738433]
[1731076738034,0.01,2927.9,2926.8,0.67664347]
[1731076738956,0.01,2927.9,2926.9,0.0683152]
[1731076739166,0.8186,2928.1,2927.0,4.48853121]
[1731076739456,0.8186,2928.1,2927.4,4.48853121]
[1731076739457,0.8086,2928.1,2927.4,4.48853121]
[1731076739661,0.8086,2928.1,2927.1,3.0]
[1731076740225,0.8086,2928.1,2927.4,4.48853121]
[1731076740421,0.8086,2928.1,2927.5,0.67255343]
[1731076740621,0.8086,2928.1,2927.4,4.48853121]
[1731076740838,0.8086,2928.1,2927.2,0.8005]
[1731076741065,0.8186,2928.1,2927.1,3.0]
[1731076741555,0.8086,2928.1,2927.1,3.0]
[1731076741855,0.8086,2928.1,2927.5,0.67999439]
[1731076742057,0.8086,2928.1,2927.6,0.06829934]
[1731076742260,0.7558,2928.5,2927.9,3.0]
[1731076742461,0.7558,2929.1,2928.0,0.06828854]
[1731076742768,0.7558,2929.1,2927.9,3.0]
[1731076742769,0.01,2929.0,2927.9,3.0]
[1731076743267,0.01,2929.0,2928.0,0.06828416]
[1731076743468,0.01,2929.0,2927.9,3.0]
[1731076743651,0.02,2929.0,2927.9,3.0]
[1731076743834,0.7658,2928.6,2927.5,3.0]
[1731076744070,0.7558,2928.6,2927.5,3.0]
[1731076744259,0.7558,2928.6,2927.6,0.06829677]
[1731076744452,0.7558,2928.6,2927.5,3.0]
[1731076745093,0.7558,2928.6,2927.4,5.17473778]
[1731076745094,0.7558,2928.6,2927.9,3.0]
[1731076745577,0.7558,2928.6,2928.0,0.06828827]
[1731076745904,0.7558,2928.6,2927.9,3.0]
[1731076746258,0.7809,2929.1,2928.2,4.48853121]
[1731076746505,0.01,2928.8,2927.9,3.0]
[1731076746666,0.7809,2929.1,2927.9,3.0]
[1731076746868,0.7909,2929.1,2927.9,3.0]
[1731076747269,0.7809,2929.1,2927.9,3.0]
[1731076747976,0.8183,2928.7,2927.7,4.48853121]
[1731076748359,0.8183,2928.7,2927.7,5.25923121]
[1731076748566,0.7572,2929.1,2928.1,4.48853121]
[1731076749062,0.7572,2929.1,2928.2,0.06827709]
[1731076749266,0.7696,2929.8,2928.6,3.0]
[1731076749607,0.7796,2929.8,2928.6,3.0]
[1731076750096,0.7796,2929.8,2928.6,3.68004135]
[1731076750322,0.7696,2929.8,2928.6,3.68004135]
[1731076750516,0.7696,2929.8,2929.0,3.0]
[1731076750965,0.7696,2929.8,2929.0,3.63254436]
[1731076751500,0.7696,2929.8,2929.1,0.0682591]
[1731076751712,0.7696,2929.8,2929.1,0.7586413]
[1731076752029,0.7696,2929.8,2929.1,0.6903822]
[1731076752226,0.7696,2929.8,2929.2,0.06825736]
[1731076752427,0.7658,2930.2,2929.2,0.50737575]
[1731076752723,0.7658,2930.2,2929.1,0.6903822]
[1731076753213,0.7658,2930.2,2929.0,3.0]
[1731076754091,0.7658,2930.2,2929.4,0.6732557]
[1731076754519,0.8103,2929.9,2928.5,4.48853121]
[1731076754829,0.8103,2929.7,2928.3,0.7987]
[1731076755115,0.8103,2929.7,2928.9,0.67571209]
[1731076756216,0.01,2929.6,2928.9,0.67571209]
[1731076756522,0.8208,2929.5,2928.5,4.48853121]
[1731076756726,0.01,2930.6,2926.7,0.53439185]
[1731076756727,0.7576,2928.9,2927.7,4.48853121]
[1731076756893,0.7676,2928.9,2928.2,0.66928905]
[1731076757099,0.7576,2928.9,2928.2,0.66928905]
[1731076757340,0.7676,2928.9,2928.2,0.66928905]
[1731076757490,0.7576,2928.9,2928.2,0.66928905]
[1731076757690,0.7576,2928.9,2928.3,0.06828431]
[1731076757891,0.02,2929.6,2928.5,4.48853121]
[1731076758137,0.7559,2929.5,2928.5,4.48853121]
[1731076758519,0.7559,2929.5,2928.3,0.52261046]
[1731076758694,0.01,2929.3,2928.1,4.48853121]
[1731076758892,0.01,2929.3,2928.2,3.0]
[1731076759141,0.8064,2929.2,2928.2,3.0]
[1731076759347,0.8064,2929.2,2928.4,0.69692306]
[1731076759645,0.8164,2929.2,2928.5,0.06828019]
[1731076760004,0.8164,2929.2,2928.2,3.0]
[1731076760548,0.8164,2929.2,2928.3,0.69357969]
[1731076761245,0.8164,2929.2,2928.4,0.06828127]
[1731076761421,0.8164,2929.2,2928.2,3.0]
[1731076761759,0.01,2929.3,2926.9,4.48853121]
[1731076761760,0.01,2928.4,2926.9,4.48853121]
[1731076761953,0.8287,2928.3,2927.0,0.52898312]
[1731076762254,0.8287,2928.3,2927.7,4.48853121]
[1731076763253,0.7886,2928.9,2927.8,0.06829311]
[1731076763417,0.7886,2928.9,2927.8,0.52397554]
[1731076763618,0.7886,2928.9,2928.1,4.48853121]
[1731076763804,0.7886,2928.9,2928.2,0.0682827]
[1731076764333,0.7886,2928.9,2928.2,3.0]
[1731076765105,0.01,2928.7,2927.8,3.45568243]
[1731076765306,0.01,2928.7,2927.8,3.0]
[1731076766121,0.7719,2928.6,2927.8,3.0]
[1731076766905,0.7819,2928.6,2927.8,3.0]
[1731076767348,0.7819,2928.6,2927.9,0.06829454]
[1731076767851,0.7719,2928.6,2927.9,0.06829454]
[1731076768142,0.7719,2928.6,2927.8,3.0]
[1731076768329,0.7719,2928.6,2927.9,0.06829199]
[1731076769246,0.7719,2928.6,2927.4,0.67021181]
[1731076769427,0.7719,2928.6,2927.6,4.02772984]
[1731076770035,0.7719,2928.6,2927.7,0.06829202]
[1731076771333,0.7719,2928.6,2928.0,4.02772984]
[1731076771534,0.7719,2928.6,2928.1,0.06829119]
[1731076771734,0.7719,2928.6,2928.2,0.06829101]
[1731076772466,0.7719,2928.6,2928.1,0.06828836]
[1731076772819,0.7719,2928.6,2928.0,4.02772984]
[1731076774175,0.7719,2928.6,2928.1,0.06828872]
[1731076774383,0.7719,2928.6,2928.1,0.40960186]
[1731076774574,0.02,2929.2,2928.5,4.02772984]
[1731076774575,0.7841,2929.0,2928.5,4.02772984]
[1731076774733,0.7841,2929.0,2928.6,0.06828008]
[1731076774933,0.8251,2929.6,2928.9,4.02772984]
[1731076775337,0.01,2929.5,2928.5,4.02772984]
[1731076775555,0.8251,2929.3,2928.5,4.02772984]
[1731076776084,0.8351,2929.3,2928.1,7.70668971]
[1731076776245,0.8351,2929.3,2928.1,7.02772984]
[1731076776992,0.8351,2929.3,2928.2,0.68776512]
[1731076777149,0.8251,2929.3,2928.5,4.02772984]
[1731076777476,0.8251,2929.3,2928.6,0.06827368]
[1731076777677,0.8251,2929.3,2928.6,0.06827065]
[1731076777993,0.8251,2929.3,2928.5,4.02772984]
[1731076778281,0.8251,2929.3,2928.6,0.40277298]
[1731076778638,0.7663,2929.6,2928.7,0.67008637]
[1731076778840,0.7763,2929.6,2928.7,0.67008637]
[1731076779280,0.7663,2929.6,2928.7,0.67008637]
[1731076779445,0.7763,2929.6,2928.7,0.67008637]
[1731076779776,0.7763,2929.6,2928.7,1.18014529]
[1731076780839,0.7763,2929.6,2928.5,4.02772984]
[1731076781480,0.01,2929.5,2928.1,7.02772984]
[1731076781702,0.7663,2929.4,2928.1,4.02772984]
[1731076781843,0.01,2929.1,2928.1,4.02772984]
[1731076782274,0.7663,2929.4,2928.1,4.02772984]
[1731076782275,0.01,2929.3,2928.2,0.68451415]
[1731076782469,0.01,2929.1,2928.2,0.68451415]
[1731076782688,0.01,2929.1,2928.2,1.30336976]
[1731076783287,0.01,2929.3,2928.2,1.30336976]
[1731076783492,0.01,2929.3,2928.7,4.02772984]
[1731076784586,0.7524,2929.2,2928.7,4.02772984]
[1731076784788,0.7524,2929.2,2928.3,4.02772984]
[1731076785008,0.02,2929.1,2928.3,4.02772984]
[1731076785292,0.7524,2929.0,2928.3,4.02772984]
[1731076786955,0.7524,2929.0,2927.7,3.69890931]
[1731076786956,0.7664,2928.5,2927.8,4.02772984]
[1731076787287,0.7664,2928.5,2927.8,4.50039376]
[1731076787597,0.7664,2928.5,2927.8,4.71646948]
[1731076787899,0.7664,2928.5,2927.9,0.06829058]
[1731076788094,0.7664,2928.5,2927.8,4.02772984]
[1731076788985,0.7664,2928.5,2927.9,0.06829113]
[1731076790117,0.7664,2928.5,2928.2,4.02772984]
[1731076790271,0.7923,2929.1,2928.3,0.47105916]
[1731076790607,0.7823,2929.1,2928.6,4.02772984]
[1731076790766,0.7823,2929.1,2928.7,0.06828182]
[1731076791166,0.6823,2929.1,2928.7,0.06828182]
[1731076791396,0.6723,2929.1,2928.2,4.02772984]
[1731076791869,0.01,2928.9,2928.2,4.02772984]
[1731076792067,0.6823,2929.1,2928.6,0.6688098]
[1731076792292,0.6723,2929.1,2928.7,0.06827933]
[1731076792614,0.6723,2929.1,2928.6,4.69653964]
[1731076792809,0.6723,2929.1,2928.7,0.06827976]
[1731076792963,0.6723,2929.1,2928.6,4.69653964]
[1731076793168,0.6723,2929.1,2928.7,0.53792705]
[1731076793612,0.6723,2929.1,2928.7,0.46965396]
[1731076793763,0.02,2929.7,2929.0,4.02772984]
[1731076793967,0.085339,2930.3,2929.0,4.02772984]
[1731076793968,0.01,2930.0,2929.1,0.06826555]
[1731076794377,0.01,2929.8,2929.1,4.02772984]
[1731076794579,0.01,2929.8,2929.1,4.43050282]
[1731076794778,0.7935,2929.9,2929.1,4.43050282]
[1731076795012,0.7935,2929.9,2929.5,4.02772984]
[1731076795368,0.8161,2930.3,2929.5,4.69523135]
[1731076795619,0.8161,2930.3,2929.9,4.02772984]
[1731076795768,0.01,2930.9,2930.0,0.40277298]
[1731076795984,0.8111,2931.0,2930.8,4.02772984]
[1731076796280,0.8111,2931.5,2930.8,4.02772984]
[1731076796469,0.8111,2931.5,2930.9,0.06822296]
[1731076796668,0.8111,2931.5,2930.8,4.02772984]
[1731076796915,0.8111,2931.5,2930.9,0.06822296]
[1731076797213,0.8043,2932.0,2931.2,4.02772984]
[1731076797512,0.01,2931.9,2931.2,4.02772984]
[1731076797668,0.7943,2932.0,2931.4,0.67064077]
[1731076798012,0.01,2931.9,2931.4,0.67064077]
[1731076798220,0.01,2931.8,2931.4,0.67064077]
[1731076798818,0.01,2931.9,2931.4,0.67064077]
[1731076799024,0.01,2932.5,2931.7,0.799]
[1731076799192,0.7816,2932.1,2931.4,0.67064077]
[1731076799374,0.7916,2932.1,2931.4,0.67064077]
[1731076799871,0.7916,2932.1,2931.2,4.02772984]
[1731076800104,0.7916,2932.1,2931.3,0.69751427]
[1731076800330,0.7916,2932.1,2931.4,0.06820882]
[1731076800466,0.7916,2932.1,2931.3,0.09250027]
[1731076800679,0.8016,2932.1,2931.3,0.09250027]
[1731076800872,0.8016,2932.1,2931.4,0.06821276]
[1731076801074,0.8016,2932.1,2931.3,0.09250027]
[1731076801376,0.01,2931.7,2930.8,4.02772984]
[1731076801572,0.02,2931.4,2930.4,4.02772984]
[1731076801781,0.01,2931.1,2930.4,4.02772984]
[1731076801976,0.02,2931.4,2930.4,4.02772984]
[1731076802283,0.01,2931.3,2930.5,4.09595565]
[1731076802490,0.7567,2931.5,2930.9,4.02772984]
[1731076802689,0.7884,2931.9,2930.9,4.84702984]
[1731076803171,0.01,2931.8,2930.9,4.84702984]
[1731076803571,0.7884,2931.9,2930.9,4.84702984]
[1731076803807,0.01,2931.8,2930.9,4.84702984]
[1731076804008,0.7884,2931.9,2931.0,0.06821255]
[1731076804778,0.7884,2931.9,2931.3,0.68428802]
[1731076804779,0.7984,2931.9,2931.3,0.68428802]
[1731076805199,0.7884,2931.9,2931.3,0.68428802]
[1731076805785,0.7884,2931.9,2931.4,0.06821092]
[1731076805985,0.7829,2932.2,2931.7,4.02772984]
[1731076806187,0.7829,2932.2,2931.8,0.06820171]
[1731076806805,0.01,2932.4,2931.7,4.02772984]
[1731076807965,0.01,2932.4,2931.7,4.80922984]
[1731076808107,0.01,2932.8,2931.7,4.80922984]
[1731076808108,0.01,2932.8,2932.1,4.02772984]
[1731076808419,0.7949,2932.9,2932.5,4.02772984]
[1731076808581,0.01,2932.8,2931.7,1.33155544]
[1731076808781,0.02,2932.8,2931.9,4.02772984]
[1731076809016,0.7949,2932.3,2931.6,0.67666481]
[1731076809223,0.7949,2932.3,2931.5,4.02772984]
[1731076809626,0.01,2932.1,2931.5,4.02772984]
[1731076809992,0.01,2932.2,2931.5,4.02772984]
[1731076810195,0.01,2931.8,2931.3,0.69180181]
[1731076810436,0.02,2931.6,2930.4,4.85572984]
[1731076810636,0.02,2931.2,2930.4,4.02772984]
[1731076810802,0.01,2931.0,2930.0,4.80332984]
[1731076811423,0.8325,2931.1,2930.0,4.80332984]
[1731076811627,0.8425,2931.1,2930.4,4.02772984]
[1731076811827,0.8425,2931.1,2930.5,0.06823267]
[1731076812130,0.8325,2931.1,2930.5,0.06823267]
[1731076812331,0.8425,2931.1,2930.5,0.06823267]
[1731076812529,0.8325,2931.1,2930.5,0.06823267]
[1731076813317,0.8325,2931.1,2930.4,4.02772984]
[1731076815040,0.01,2931.0,2930.1,3.0]
[1731076815220,0.02,2931.0,2930.1,3.0]
[1731076815584,0.01,2930.8,2930.2,0.06823487]
[1731076815719,0.01,2930.7,2930.0,4.02772984]
[1731076816063,0.01,2930.7,2930.1,0.06823739]
[1731076816564,0.01,2930.8,2930.4,4.02772984]
[1731076816722,0.01,2930.7,2930.5,0.06823737]
[1731076817159,0.01,2930.8,2930.5,0.06823737]
[1731076817370,0.8325,2931.1,2930.5,0.06823737]
[1731076817770,0.8425,2931.1,2930.4,4.82682984]
[1731076817976,0.8325,2931.1,2930.4,4.82682984]
[1731076818145,0.8425,2931.1,2930.4,4.82682984]
[1731076818464,0.8425,2931.1,2930.5,0.06822775]
[1731076818636,0.8425,2931.1,2930.4,4.82682984]
[1731076818838,0.8525,2931.1,2930.4,4.82682984]
[1731076819162,0.8425,2931.1,2930.4,5.49630644]
[1731076819663,0.8325,2931.1,2930.4,5.49630644]
[1731076819870,0.8425,2931.1,2930.4,5.49630644]
[1731076820042,0.8425,2931.1,2930.5,0.06823073]
[1731076821261,0.8425,2931.1,2930.4,6.04593708]
[1731076821425,0.8325,2931.1,2930.4,6.04593708]
[1731076821623,0.8425,2931.1,2930.4,6.04593708]
[1731076822032,0.8325,2931.1,2930.4,6.04593708]
[1731076822249,0.8425,2931.1,2930.4,6.04593708]
[1731076822729,0.7878,2931.4,2930.8,4.02772984]
[1731076822930,0.7978,2931.9,2930.8,4.02772984]
[1731076823151,0.01,2931.6,2930.8,4.02772984]
[1731076823568,0.01,2931.7,2930.8,4.02772984]
[1731076823872,0.7878,2931.9,2931.2,4.02772984]
[1731076824039,0.01,2932.3,2931.6,4.02772984]
[1731076824241,0.7748,2932.3,2931.7,0.06820104]
[1731076824578,0.01,2932.2,2931.6,4.02772984]
[1731076825641,0.7848,2932.3,2931.6,4.02772984]
[1731076825870,0.7848,2932.3,2931.7,0.06820296]
[1731076826071,0.01,2932.0,2931.6,4.02772984]
[1731076826580,0.7948,2932.3,2931.6,4.49865202]
[1731076826938,0.7748,2932.3,2931.7,0.06820281]
[1731076827139,0.776,2932.7,2932.0,4.02772984]
[1731076827340,0.766,2932.7,2932.4,4.02772984]
[1731076827535,0.01,2932.9,2932.4,4.02772984]
[1731076827536,0.01,2933.0,2932.5,0.06818886]
[1731076827869,0.01,2933.0,2932.4,4.02772984]
[1731076827870,0.02,2933.0,2932.4,4.02772984]
[1731076828279,0.7624,2933.1,2932.4,4.72115389]
[1731076828575,0.02,2933.0,2932.4,4.72115389]
[1731076829570,0.02,2933.0,2932.4,0.69342405]
[1731076829778,0.01,2932.8,2932.4,0.69342405]
[1731076829948,0.01,2932.4,2931.6,4.02772984]
[1731076830293,0.01,2932.4,2931.4,0.66738685]
[1731076830455,0.8177,2931.8,2930.9,4.79102984]
[1731076830685,0.8177,2931.8,2931.1,0.69676223]
[1731076830897,0.8277,2931.8,2931.1,0.69676223]
[1731076831219,0.8177,2931.8,2931.2,0.06821526]
[1731076831590,0.01,2931.9,2931.3,4.02772984]
[1731076831794,0.01,2932.1,2931.3,4.02772984]
[1731076832184,0.01,2932.1,2931.4,0.06820599]
[1731076832727,0.01,2932.1,2931.4,3.06820599]
[1731076832919,0.01,2932.1,2931.4,3.68398197]
[1731076833329,0.01,2932.1,2931.4,3.61577598]
[1731076833912,0.02,2932.1,2931.4,3.61577598]
[1731076834234,0.01,2932.1,2931.5,0.06820708]
[1731076834612,0.01,2932.1,2931.4,3.0]
[1731076834811,0.01,2932.1,2931.5,0.068205]
[1731076835014,0.01,2932.1,2931.4,3.0]
[1731076835340,0.01,2932.0,2931.4,3.0]
[1731076836128,0.01,2932.0,2931.4,2.595223]
[1731076836336,0.01,2932.0,2931.1,0.69676223]
[1731076836488,0.01,2931.7,2931.0,0.69358604]
[1731076836694,0.01,2931.6,2930.8,4.02772984]
[1731076836894,0.01,2931.5,2930.8,4.50869282]
[1731076837096,0.01,2931.5,2930.8,4.02772984]
[1731076837497,0.02,2931.3,2930.4,4.02772984]
[1731076837707,0.01,2931.1,2930.4,4.02772984]
[1731076838128,0.02,2931.3,2930.4,4.02772984]
[1731076838428,0.01,2931.1,2930.4,4.02772984]
[1731076838637,0.01,2931.1,2930.4,4.43050282]
[1731076839131,0.01,2931.1,2930.5,0.06822625]
[1731076839436,0.01,2931.1,2930.5,3.0]
[1731076839795,0.02,2931.1,2930.5,3.0]
[1731076840005,0.01,2931.1,2930.5,3.0]
[1731076840210,0.02,2931.1,2930.5,3.06822841]
[1731076841241,0.02,2931.1,2930.5,3.06822963]
[1731076841536,0.01,2931.1,2930.5,3.06822963]
[1731076841896,0.02,2931.1,2930.5,3.06822963]
[1731076842095,0.01,2931.1,2930.8,4.02772984]
[1731076842413,0.01,2931.6,2930.9,3.06822596]
[1731076842589,0.01,2931.6,2930.8,4.78482984]
[1731076842590,0.01,2931.1,2930.4,4.02772984]
[1731076842797,0.01,2931.1,2930.5,3.0]
[1731076843804,0.01,2930.9,2930.4,4.02772984]
[1731076844005,0.01,2931.9,2929.6,4.02772984]
[1731076844006,0.01,2930.4,2929.6,4.02772984]
[1731076844193,0.01,2930.4,2929.6,4.43050282]
[1731076844398,0.01,2930.2,2929.2,4.02772984]
[1731076844701,0.01,2930.0,2929.4,0.69021249]
[1731076844920,0.01,2929.9,2929.4,0.69021249]
[1731076845753,0.7722,2929.8,2929.4,0.69021249]
[1731076845947,0.7722,2929.8,2929.2,4.02772984]
[1731076846231,0.7722,2929.8,2929.3,3.0]
[1731076846542,0.01,2929.7,2929.2,4.02772984]
[1731076846743,0.02,2929.7,2929.2,4.02772984]
[1731076847043,0.01,2929.7,2929.2,4.02772984]
[1731076847340,0.02,2929.7,2928.9,0.69382688]
[1731076847497,0.01,2929.7,2928.9,0.55187567]
[1731076847997,0.02,2929.7,2928.9,3.55187567]
[1731076849431,0.02,2929.7,2929.0,0.06826401]
[1731076849637,0.02,2929.7,2928.9,3.55187567]
[1731076850132,0.02,2929.7,2929.0,0.06826402]
[1731076850499,0.02,2929.7,2928.9,3.55187567]
[1731076850706,0.01485103,2929.7,2929.0,0.60461353]
[1731076851106,0.01485103,2929.7,2929.0,0.53634952]
[1731076851944,0.767,2929.3,2928.9,3.0]
[1731076852229,0.767,2929.3,2929.0,0.06827231]
[1731076853060,0.767,2929.3,2928.9,3.0]
[1731076853256,0.01,2929.0,2928.7,0.6844166]
[1731076853547,0.01,2929.0,2928.0,5.21562344]
[1731076853743,0.00485103,2929.2,2928.4,4.02772984]
[1731076854231,0.767,2929.3,2928.8,4.02772984]
[1731076854441,0.767,2929.3,2928.9,0.06826946]
[1731076854654,0.767,2929.3,2928.9,3.06826946]
[1731076854811,0.767,2929.3,2928.9,3.0]
[1731076855011,0.767,2929.3,2929.0,0.70277298]
[1731076855213,0.767,2929.3,2928.9,3.0]
[1731076856716,0.00485103,2927.7,2926.0,0.8024]
[1731076856940,1.32533775,2929.2,2926.0,0.8024]
[1731076856941,0.00485103,2927.3,2927.1,0.14247722]
[1731076857262,0.00485103,2927.3,2926.5,4.77134703]
[1731076857422,0.00485103,2927.3,2926.6,0.4771347]
[1731076857621,0.01,2927.4,2926.7,0.06831545]
[1731076857865,0.01,2927.4,2926.6,0.4771347]
[1731076858527,0.01,2927.3,2926.6,0.4771347]
[1731076858925,0.782,2927.6,2926.9,4.02772984]
[1731076859125,0.782,2927.6,2927.0,0.40277298]
[1731076859573,0.792,2927.6,2927.0,0.40277298]
[1731076859724,0.782,2927.6,2926.6,0.4771347]
[1731076859924,0.782,2927.6,2926.7,0.44075005]
[1731076860365,0.782,2927.6,2926.9,4.02772984]
[1731076860668,0.782,2927.6,2927.0,3.44075005]
[1731076860833,0.782,2927.6,2927.1,0.74684799]
[1731076861754,0.782,2927.6,2925.4,3.99328353]
[1731076861755,0.01485103,2927.5,2926.7,0.69889298]
[1731076861935,0.01485103,2927.5,2926.5,4.02772984]
[1731076862145,0.01485103,2927.5,2926.5,4.46847989]
[1731076862340,0.01485103,2927.5,2926.6,0.44075005]
[1731076862563,0.01485103,2927.5,2926.7,1.02833179]
[1731076862735,0.01485103,2927.8,2926.9,4.02772984]
[1731076863088,0.00485103,2927.8,2927.0,3.44075005]
[1731076863576,0.8137,2928.1,2927.1,0.0683037]
[1731076863758,0.01,2928.0,2927.2,0.44075005]
[1731076864068,0.8137,2928.1,2927.4,3.0]
[1731076864403,0.81855103,2928.1,2927.0,0.66653239]
[1731076864549,0.81855103,2928.1,2927.1,0.67950394]
[1731076864872,0.81855103,2928.1,2927.3,3.0]
[1731076865178,0.8137,2928.1,2927.3,7.02772984]
[1731076865482,0.8087,2928.6,2927.7,4.02772984]
[1731076865628,0.8087,2928.6,2927.8,3.0]
[1731076865976,0.00485103,2928.5,2927.8,38.0]
[1731076866142,0.8041,2928.0,2927.4,3.0]
[1731076866660,0.8041,2928.0,2927.6,3.0]
[1731076866863,0.8041,2928.0,2926.9,4.02772984]
[1731076867034,0.8041,2928.0,2927.0,3.40277298]
[1731076867232,0.00485103,2927.6,2926.6,0.7765]
[1731076867460,0.7653,2927.5,2926.6,0.68149472]
[1731076867662,0.7653,2927.5,2926.5,4.02772984]
[1731076867855,0.7653,2927.5,2926.6,35.0]
[1731076868212,0.08538694,2928.6,2925.7,4.02772984]
[1731076868213,0.8319,2926.8,2925.7,4.02772984]
[1731076868336,0.8319,2926.8,2926.2,0.6727576]
[1731076868536,0.8319,2926.8,2925.9,35.0]
[1731076868762,0.8319,2927.1,2926.2,0.7619]
[1731076868970,0.8319,2927.1,2926.3,0.44075005]
[1731076869789,0.8319,2927.1,2926.5,3.0]
[1731076869955,0.8319,2927.1,2926.5,8.04661679]
[1731076870280,0.8373,2927.9,2927.0,3.0]
[1731076870481,0.8273,2927.9,2927.3,4.02772984]
[1731076870696,0.8273,2928.2,2927.4,3.06829682]
[1731076870991,4.03772984,2929.6,2927.4,3.06829682]
[1731076870992,0.00485103,2928.8,2927.8,3.0]
[1731076871154,0.83215103,2929.0,2927.9,0.77105172]
[1731076871366,0.83215103,2929.0,2928.2,3.0]
[1731076871647,0.01,2928.9,2928.2,3.0]
[1731076872093,0.83215103,2929.0,2928.2,3.0]
[1731076872503,0.8273,2929.0,2928.3,0.06828035]
[1731076872729,0.01,2930.2,2928.1,39.02772984]
[1731076872730,0.8333,2929.3,2928.6,3.0]
[1731076874484,0.83094257,2929.3,2928.6,3.0]
[1731076874704,0.00485103,2928.8,2928.1,39.02772984]
[1731076874904,0.01485103,2928.8,2928.1,4.02772984]
[1731076875377,0.01485103,2928.8,2928.1,4.73050282]
[1731076875591,0.00485103,2928.8,2928.1,4.73050282]
[1731076875791,0.00485103,2928.8,2928.2,0.06827687]
[1731076876110,0.00485103,2929.2,2928.5,4.02772984]
[1731076876317,0.00485103,2929.2,2928.6,0.0682706]
[1731076876461,0.01,2929.1,2928.5,4.02772984]
[1731076876670,0.00485103,2929.2,2928.5,4.02772984]
[1731076876977,0.01,2929.1,2928.5,4.02772984]
[1731076877599,0.78345103,2929.0,2928.5,4.02772984]
[1731076877802,0.00225103,2928.7,2928.1,4.02772984]
[1731076877968,0.00159584,2928.7,2928.1,4.02772984]
[1731076878514,0.00159584,2928.7,2928.2,0.0682833]
[1731076878812,0.00159584,2928.7,2928.1,4.02772984]
[1731076880374,0.7625,2928.6,2927.7,4.02772984]
[1731076880576,0.01,2929.4,2927.1,1.20106672]
[1731076880577,0.01,2928.1,2927.3,4.02772984]
[1731076880764,0.7625,2928.0,2927.3,4.02772984]
[1731076880965,0.01,2927.9,2926.9,4.02772984]